bitfinex-derivatives/quotes_BTCF0:USTF0_20240814
["timestamp","ask_amount","ask_price","bid_price","bid_amount"]
[1723647121855,0.00021136,59511.0,59510.0,0.52792261]
[1723647122250,0.00594792,59518.0,59517.0,0.083984]
[1723647122458,0.083973,59525.0,59518.0,0.083982]
[1723647122657,0.083973,59525.0,59522.0,0.3608]
[1723647123461,0.083975,59524.0,59522.0,0.3608]
[1723647124653,0.083976,59523.0,59522.0,0.3608]
[1723647124853,0.083982,59519.0,59518.0,0.00025209]
[1723647126262,0.444773,59526.0,59519.0,0.083981]
[1723647126457,0.444773,59526.0,59519.0,0.15065919]
[1723647126759,0.00608052,59526.0,59520.0,0.06667819]
[1723647126959,0.083973,59525.0,59521.0,0.06667819]
[1723647127256,0.083973,59525.0,59523.0,0.3608]
[1723647128350,0.00611581,59529.0,59523.0,0.3608]
[1723647128667,0.083963,59532.0,59528.0,0.3608]
[1723647129060,0.00610744,59533.0,59528.0,0.42747819]
[1723647129366,0.083959,59535.0,59528.0,0.42747819]
[1723647130063,0.083961,59534.0,59528.0,0.42747819]
[1723647130365,0.083961,59534.0,59528.0,0.3608]
[1723647130855,0.083962,59533.0,59528.0,0.3608]
[1723647131055,0.083965,59531.0,59528.0,0.3608]
[1723647131460,0.083961,59534.0,59528.0,0.3608]
[1723647131662,0.083967,59530.0,59528.0,0.3608]
[1723647132861,0.083961,59534.0,59528.0,0.3608]
[1723647132862,0.083967,59529.0,59528.0,0.3608]
[1723647135269,0.083962,59533.0,59528.0,0.3608]
[1723647135567,0.083963,59532.0,59528.0,0.3608]
[1723647136071,0.083958,59536.0,59528.0,0.3608]
[1723647136366,0.36686659,59538.0,59528.0,0.3608]
[1723647136974,0.36686659,59538.0,59528.0,0.444769]
[1723647137361,0.083965,59531.0,59528.0,0.3608]
[1723647137763,0.36686659,59538.0,59528.0,0.3608]
[1723647137965,0.08396,59535.0,59528.0,0.3608]
[1723647138167,0.00606659,59538.0,59528.0,0.3608]
[1723647138471,0.083952,59541.0,59534.0,0.08396]
[1723647138675,0.083952,59541.0,59538.0,0.3608]
[1723647138969,0.327,59542.0,59538.0,0.3608]
[1723647139168,0.33312876,59542.0,59538.0,0.3608]
[1723647139564,0.41703776,59542.0,59538.0,0.3608]
[1723647140770,0.083952,59540.0,59538.0,0.3608]
[1723647140968,0.083951,59541.0,59538.0,0.3608]
[1723647141567,0.3608,59540.0,59534.0,0.08421209]
[1723647141767,0.3608,59540.0,59534.0,0.33331209]
[1723647141962,0.083956,59537.0,59534.0,0.24935209]
[1723647142165,0.444759,59535.0,59534.0,0.00025209]
[1723647143365,0.083959,59535.0,59534.0,0.00025209]
[1723647143566,0.083958,59536.0,59534.0,0.00025209]
[1723647143567,0.444752,59540.0,59534.0,0.00025209]
[1723647143867,0.083959,59535.0,59534.0,0.00025209]
[1723647144076,0.00636867,59540.0,59534.0,0.36105209]
[1723647144278,0.083951,59541.0,59535.0,0.31977819]
[1723647144464,0.08395,59542.0,59535.0,0.31977819]
[1723647144679,0.08395,59542.0,59536.0,0.083957]
[1723647144968,0.00647143,59545.0,59544.0,0.083946]
[1723647145270,0.083941,59548.0,59543.0,0.06667819]
[1723647145471,0.083941,59548.0,59542.0,0.06667819]
[1723647145472,0.083944,59546.0,59542.0,0.06667819]
[1723647145665,0.083943,59546.0,59541.0,0.06667819]
[1723647145972,0.083951,59542.0,59539.0,0.06667819]
[1723647146169,0.3608,59548.0,59541.0,0.3608]
[1723647146374,0.3608,59548.0,59541.0,0.69147819]
[1723647146573,0.3608,59548.0,59541.0,0.77542819]
[1723647146771,0.3608,59548.0,59541.0,0.6248]
[1723647146972,0.083945,59545.0,59541.0,0.6248]
[1723647147174,0.083946,59544.0,59541.0,0.6248]
[1723647147472,0.3608,59548.0,59541.0,0.6248]
[1723647147473,0.444741,59548.0,59541.0,0.6248]
[1723647147774,0.444741,59548.0,59541.0,0.69147819]
[1723647148070,0.083942,59547.0,59541.0,0.69147819]
[1723647148274,0.083944,59546.0,59541.0,0.69147819]
[1723647148475,0.1679,59541.0,59540.0,0.02887007]
[1723647148769,0.083965,59531.0,59530.0,0.06674521]
[1723647148970,0.083965,59531.0,59516.0,0.6279]
[1723647148971,0.167934,59529.0,59528.0,0.05807657]
[1723647149175,0.083976,59523.0,59522.0,0.01477877]
[1723647149374,0.083987,59515.0,59510.0,0.08332278]
[1723647149571,0.45432052,59530.0,59508.0,0.08332278]
[1723647149572,0.3608,59512.0,59508.0,0.08332278]
[1723647149769,0.3608,59524.0,59511.0,0.3608]
[1723647149973,0.00025209,59516.0,59511.0,0.3608]
[1723647150375,0.00025209,59516.0,59514.0,0.083987]
[1723647150579,0.00025209,59516.0,59515.0,0.353487]
[1723647150776,0.00025209,59516.0,59515.0,0.43680978]
[1723647151275,0.00630792,59528.0,59527.0,0.08397]
[1723647151578,0.19362896,59531.0,59528.0,0.083969]
[1723647151877,0.19362896,59531.0,59528.0,0.333969]
[1723647152181,0.444749,59542.0,59528.0,1.15396]
[1723647152377,0.444749,59542.0,59532.0,0.0834831]
[1723647152573,0.45118782,59542.0,59535.0,0.083958]
[1723647152774,0.083953,59540.0,59531.0,0.1674471]
[1723647152973,0.36723882,59542.0,59530.0,0.0834831]
[1723647153170,0.36723882,59542.0,59535.0,0.083958]
[1723647153376,0.36723882,59542.0,59531.0,0.0834831]
[1723647153377,0.083953,59539.0,59531.0,0.0834831]
[1723647153679,0.36723882,59542.0,59530.0,0.0834831]
[1723647153976,0.36723882,59542.0,59535.0,0.083959]
[1723647154367,0.36723882,59542.0,59536.0,0.2757]
[1723647154772,0.36723882,59542.0,59537.0,0.083956]
[1723647155081,0.36723882,59542.0,59539.0,0.083953]
[1723647155280,0.00643882,59542.0,59539.0,0.083953]
[1723647155579,0.444743,59547.0,59540.0,0.083951]
[1723647155874,0.45108157,59547.0,59540.0,0.083951]
[1723647156278,0.36713857,59547.0,59541.0,0.08395]
[1723647156881,0.36713857,59547.0,59538.0,0.36105209]
[1723647157773,0.36168,59555.0,59546.0,0.083943]
[1723647157968,0.3608,59555.0,59549.0,0.3608]
[1723647158477,0.36724747,59555.0,59549.0,0.3608]
[1723647158681,0.3608,59561.0,59554.0,0.3608]
[1723647158975,0.3608,59561.0,59558.0,0.083926]
[1723647159177,0.3608,59561.0,59555.0,0.2696]
[1723647159677,0.36731194,59561.0,59557.0,0.083928]
[1723647160272,0.45123494,59561.0,59555.0,0.2696]
[1723647160476,0.083924,59560.0,59555.0,0.2696]
[1723647160870,0.36731194,59561.0,59556.0,0.083929]
[1723647161276,0.36731194,59561.0,59557.0,0.083928]
[1723647161870,0.36731194,59561.0,59555.0,0.2696]
[1723647162270,0.083926,59559.0,59555.0,0.2696]
[1723647162473,0.083927,59558.0,59555.0,0.2696]
[1723647162785,0.45123494,59561.0,59555.0,0.2696]
[1723647162978,0.45123494,59561.0,59555.0,0.35353]
[1723647163174,0.36731194,59561.0,59555.0,0.2696]
[1723647163373,0.36731194,59561.0,59556.0,0.3266]
[1723647163775,0.36731194,59561.0,59560.0,0.083924]
[1723647163979,0.00651194,59561.0,59560.0,0.083924]
[1723647164283,0.3608,59563.0,59555.0,0.2696]
[1723647164477,0.3263,59566.0,59555.0,0.2696]
[1723647164478,0.3608,59558.0,59555.0,0.2696]
[1723647165078,0.3608,59558.0,59556.0,0.083928]
[1723647165380,0.3327773,59566.0,59555.0,0.2696]
[1723647165580,0.083917,59565.0,59559.0,0.3608]
[1723647165880,0.083917,59565.0,59559.0,0.444725]
[1723647166578,0.44472,59563.0,59555.0,0.2696]
[1723647167379,0.3608,59563.0,59559.0,0.083925]
[1723647168581,0.3327773,59566.0,59562.0,0.08392]
[1723647168780,0.3327773,59566.0,59560.0,0.3608]
[1723647169085,0.083917,59565.0,59560.0,0.3608]
[1723647169278,0.3327773,59566.0,59560.0,0.3608]
[1723647169483,0.083919,59564.0,59560.0,0.444723]
[1723647169679,0.3327773,59566.0,59560.0,0.3608]
[1723647169983,0.26952052,59582.0,59560.0,0.3608]
[1723647169984,0.3608,59587.0,59565.0,0.3608]
[1723647170179,0.3608,59581.0,59578.0,0.3266]
[1723647170380,0.3608,59581.0,59579.0,0.2154]
[1723647170573,0.3608,59581.0,59570.0,0.00025187]
[1723647170574,0.083908,59571.0,59570.0,0.00025187]
[1723647170886,0.3608,59576.0,59570.0,0.00025187]
[1723647171183,0.3608,59576.0,59570.0,0.36105187]
[1723647171378,0.444708,59571.0,59570.0,0.00025187]
[1723647172087,2.119616,59571.0,59570.0,8.7e-07]
[1723647172279,0.083934,59553.0,59548.0,0.3608]
[1723647172477,0.3608,59554.0,59548.0,0.3608]
[1723647172987,0.3608,59554.0,59553.0,0.083934]
[1723647173501,0.00628754,59554.0,59553.0,0.083934]
[1723647173688,0.00025113,59559.0,59548.0,0.36105187]
[1723647174177,0.3608,59556.0,59548.0,0.36105187]
[1723647174374,0.3608,59558.0,59548.0,0.44499287]
[1723647174583,0.3608,59558.0,59548.0,0.36105187]
[1723647174983,0.444728,59558.0,59548.0,0.36105187]
[1723647175183,0.3608,59558.0,59553.0,0.083933]
[1723647175375,0.00025113,59559.0,59554.0,0.083932]
[1723647175376,0.3608,59557.0,59554.0,0.083932]
[1723647175581,0.3608,59557.0,59550.0,0.083937]
[1723647175888,0.3608,59554.0,59548.0,0.36105187]
[1723647176087,0.00025113,59559.0,59548.0,0.36105187]
[1723647176787,0.00025113,59559.0,59558.0,0.083927]
[1723647179180,0.00025113,59559.0,59552.0,0.083934]
[1723647179380,0.3608,59558.0,59553.0,0.083933]
[1723647179691,0.3608,59558.0,59551.0,0.083936]
[1723647179889,0.083929,59557.0,59552.0,0.083935]
[1723647180190,0.3608,59558.0,59548.0,0.36105187]
[1723647180488,0.083939,59549.0,59548.0,0.36105187]
[1723647180692,0.3608,59549.0,59539.0,0.00021083]
[1723647180897,0.3608,59541.0,59539.0,0.00021083]
[1723647181082,0.3608,59541.0,59530.0,0.21]
[1723647181083,0.3608,59540.0,59530.0,0.21]
[1723647181396,0.3608,59533.0,59530.0,0.21]
[1723647181584,0.3608,59533.0,59523.0,0.083976]
[1723647181779,0.3608,59528.0,59521.0,0.2934831]
[1723647181980,0.3608,59528.0,59526.0,0.00025187]
[1723647182194,0.00012931,59527.0,59526.0,0.00025187]
[1723647182581,0.36092931,59527.0,59526.0,0.00025187]
[1723647182792,1.34885931,59527.0,59526.0,0.00025187]
[1723647182994,0.36092931,59527.0,59517.0,0.3608]
[1723647183495,0.36092931,59527.0,59525.0,0.083973]
[1723647183794,0.36092931,59527.0,59517.0,0.3608]
[1723647183795,0.36717839,59527.0,59520.0,0.083979]
[1723647183995,0.36717839,59527.0,59517.0,0.3608]
[1723647184392,0.36717839,59527.0,59526.0,0.083972]
[1723647184795,0.36717839,59527.0,59520.0,0.00025187]
[1723647184796,0.36717839,59527.0,59521.0,0.083978]
[1723647185995,0.36717839,59527.0,59520.0,0.00025187]
[1723647186189,0.083977,59522.0,59520.0,0.00025187]
[1723647187184,0.36717839,59527.0,59520.0,0.00025187]
[1723647188594,0.083979,59521.0,59520.0,0.00025187]
[1723647188796,0.444779,59521.0,59520.0,0.00025187]
[1723647188996,0.3608,59521.0,59520.0,0.00025187]
[1723647189298,0.36717839,59527.0,59523.0,0.083976]
[1723647189502,0.36717839,59527.0,59520.0,0.00025187]
[1723647189693,0.36092931,59527.0,59526.0,0.083972]
[1723647189995,0.00012931,59527.0,59526.0,0.083972]
[1723647190694,0.00012931,59527.0,59520.0,0.00025187]
[1723647190695,0.504,59526.0,59520.0,0.00025187]
[1723647190893,0.771279,59521.0,59520.0,0.00025187]
[1723647191094,1.19146702,59521.0,59505.0,0.084001]
[1723647191303,0.3608,59506.0,59504.0,0.00643458]
[1723647191505,0.00020824,59505.0,59504.0,0.00643458]
[1723647191794,0.00020824,59505.0,59494.0,0.2108]
[1723647192197,0.00020824,59505.0,59499.0,0.08401]
[1723647192801,0.00020824,59505.0,59500.0,0.084008]
[1723647193100,0.00020824,59505.0,59500.0,0.084007]
[1723647193797,0.00020824,59505.0,59496.0,0.36731382]
[1723647193997,0.00020824,59505.0,59502.0,0.084005]
[1723647194300,0.00020824,59505.0,59496.0,0.36731382]
[1723647194301,0.00020824,59505.0,59504.0,0.084003]
[1723647195489,0.3608,59511.0,59496.0,0.36731382]
[1723647195490,0.3608,59511.0,59510.0,0.083994]
[1723647196998,0.00025209,59516.0,59515.0,0.083987]
[1723647198001,0.3608,59527.0,59515.0,0.988067]
[1723647198300,0.444764,59532.0,59517.0,0.410484]
[1723647198490,0.3608,59532.0,59523.0,0.083975]
[1723647198797,0.3608,59532.0,59509.0,0.2211]
[1723647198798,0.6873,59524.0,59498.0,0.10020685]
[1723647198995,0.441488,59531.0,59494.0,0.58334]
[1723647198996,0.3608,59507.0,59494.0,0.58334]
[1723647199195,0.6873,59514.0,59496.0,0.084014]
[1723647199196,0.08399,59513.0,59496.0,0.084014]
[1723647199399,0.3608,59507.0,59505.0,0.08425209]
[1723647200104,0.3608,59507.0,59505.0,0.00025209]
[1723647200604,0.3608,59507.0,59505.0,0.08425309]
[1723647200996,0.3608,59507.0,59505.0,0.00025209]
[1723647201393,0.00642167,59508.0,59505.0,0.00025209]
[1723647201596,0.6873,59514.0,59494.0,0.5819]
[1723647201597,0.6873,59506.0,59494.0,0.5819]
[1723647201903,0.3608,59500.0,59496.0,0.084013]
[1723647202200,0.3608,59500.0,59494.0,0.5819]
[1723647202201,0.084012,59498.0,59494.0,0.5819]
[1723647202393,0.3265,59499.0,59494.0,0.3608]
[1723647202791,0.36742267,59500.0,59499.0,0.08401]
[1723647202994,0.36742267,59500.0,59495.0,0.084014]
[1723647203389,0.00662267,59500.0,59494.0,0.3608]
[1723647203593,0.3608,59501.0,59494.0,0.3608]
[1723647204191,0.00025209,59502.0,59494.0,0.3608]
[1723647204405,0.3608,59500.0,59494.0,0.3608]
[1723647204702,0.084011,59499.0,59494.0,0.3608]
[1723647204906,0.3608,59500.0,59494.0,0.3608]
[1723647205104,0.00697612,59502.0,59495.0,0.084015]
[1723647205302,0.00697612,59502.0,59494.0,0.3608]
[1723647205303,0.3608,59501.0,59494.0,0.3608]
[1723647205603,0.00697612,59502.0,59500.0,0.084007]
[1723647205802,0.36105209,59502.0,59501.0,0.084007]
[1723647209307,0.36105209,59502.0,59501.0,0.672214]
[1723647209493,0.00025209,59502.0,59501.0,1.4398703]
[1723647209806,0.3608,59513.0,59512.0,0.083991]
[1723647210005,0.3608,59518.0,59507.0,0.42752701]
[1723647210198,0.3608,59518.0,59509.0,0.06672701]
[1723647210504,0.3608,59518.0,59517.0,0.083984]
[1723647210707,0.3608,59518.0,59505.0,0.084]
[1723647210708,0.083985,59517.0,59513.0,0.083989]
[1723647211032,0.3263,59528.0,59504.0,0.08340876]
[1723647211033,0.00025209,59523.0,59522.0,0.083977]
[1723647212400,0.00025209,59523.0,59522.0,0.15065482]
[1723647212597,0.00025209,59523.0,59522.0,0.083977]
[1723647212902,0.00025209,59523.0,59522.0,0.15067155]
[1723647213096,0.00025209,59523.0,59522.0,0.15069163]
[1723647213601,0.00025209,59523.0,59522.0,0.083977]
[1723647214102,0.3608,59531.0,59522.0,0.083977]
[1723647214306,0.3608,59531.0,59530.0,0.083966]
[1723647215296,0.444756,59538.0,59530.0,0.083966]
[1723647215297,0.3608,59538.0,59530.0,0.3608]
[1723647215605,0.0002512,59536.0,59535.0,0.083959]
[1723647216405,0.0002512,59536.0,59531.0,0.06669761]
[1723647216613,0.0002512,59536.0,59530.0,0.3608]
[1723647216808,0.0002512,59536.0,59535.0,0.083959]
[1723647218909,0.0002512,59536.0,59535.0,0.51145661]
[1723647219212,0.0002512,59536.0,59535.0,0.444759]
[1723647219909,0.3608,59557.0,59543.0,0.083948]
[1723647220104,0.3608,59557.0,59550.0,0.083938]
[1723647220411,0.444729,59557.0,59550.0,0.083938]
[1723647220603,0.3608,59557.0,59550.0,0.083938]
[1723647220798,0.3608,59557.0,59556.0,0.083929]
[1723647221008,0.36763394,59557.0,59556.0,0.083929]
[1723647221313,0.3608,59557.0,59556.0,0.083929]
[1723647223206,0.3608,59557.0,59556.0,0.295229]
[1723647223811,0.00659815,59561.0,59560.0,0.083924]
[1723647224013,0.3608,59563.0,59562.0,0.083921]
[1723647224211,0.36756087,59563.0,59559.0,0.083925]
[1723647224415,0.36756087,59563.0,59561.0,0.083922]
[1723647225013,0.36756087,59563.0,59562.0,0.083921]
[1723647225402,0.00676087,59563.0,59562.0,0.083921]
[1723647225614,0.3263,59575.0,59568.0,0.083911]
[1723647225810,0.3608,59570.0,59568.0,0.083911]
[1723647226115,0.444711,59570.0,59566.0,0.083915]
[1723647226312,0.6873,59570.0,59563.0,0.00025187]
[1723647226522,0.3608,59564.0,59563.0,0.00025187]
[1723647227311,0.444718,59564.0,59563.0,0.00025187]
[1723647227708,0.86448,59564.0,59563.0,0.00025187]
[1723647227912,0.083926,59559.0,59551.0,0.083936]
[1723647228215,0.3608,59555.0,59546.0,0.5982]
[1723647228418,0.3608,59555.0,59554.0,0.083932]
[1723647228918,0.36750254,59564.0,59561.0,0.083921]
[1723647229213,0.36750254,59564.0,59552.0,0.3608]
[1723647229420,0.3608,59564.0,59563.0,0.08392]
[1723647229617,0.00025115,59568.0,59553.0,0.083933]
[1723647229618,0.00025115,59568.0,59567.0,0.083914]
[1723647229913,0.00025115,59568.0,59561.0,0.3608]
[1723647229914,0.00713321,59568.0,59561.0,0.3608]
[1723647230108,0.00025115,59568.0,59563.0,0.083919]
[1723647230312,0.00025115,59568.0,59561.0,0.3608]
[1723647230511,0.00025115,59568.0,59567.0,0.083914]
[1723647232018,0.00025115,59568.0,59562.0,0.2374]
[1723647232019,0.00025115,59568.0,59564.0,0.083917]
[1723647232216,0.00425115,59568.0,59567.0,0.001]
[1723647232413,0.00425115,59568.0,59567.0,0.084914]
[1723647232609,0.08816415,59568.0,59567.0,0.001]
[1723647232923,0.00425115,59568.0,59567.0,0.001]
[1723647233321,0.08816415,59568.0,59567.0,0.001]
[1723647235023,0.00425115,59568.0,59567.0,0.001]
[1723647235515,0.08816415,59568.0,59567.0,0.001]
[1723647236717,0.99180415,59568.0,59567.0,0.001]
[1723647237116,0.91289115,59568.0,59559.0,0.00025187]
[1723647237423,0.444724,59560.0,59559.0,0.00025187]
[1723647238024,0.948404,59560.0,59559.0,0.00025187]
[1723647238323,1.348404,59560.0,59559.0,0.00025187]
[1723647238522,1.348404,59560.0,59552.0,0.3608]
[1723647238523,0.083932,59555.0,59552.0,0.3608]
[1723647238719,0.3608,59553.0,59543.0,0.444748]
[1723647239018,0.3608,59553.0,59543.0,0.3608]
[1723647239521,0.2268,59559.0,59550.0,0.083938]
[1723647239522,0.3608,59555.0,59550.0,0.083938]
[1723647239817,0.00025187,59554.0,59551.0,0.083936]
[1723647240021,0.00025187,59554.0,59548.0,0.3608]
[1723647240223,0.00025187,59554.0,59553.0,0.083934]
[1723647240420,0.36105187,59554.0,59544.0,0.06669761]
[1723647240622,0.36105187,59554.0,59543.0,0.3608]
[1723647240623,0.083946,59544.0,59543.0,0.001]
[1723647240920,0.444746,59544.0,59543.0,0.001]
[1723647241620,0.083948,59543.0,59542.0,0.00025187]
[1723647241920,0.587788,59543.0,59542.0,0.00025187]
[1723647242121,0.3608,59544.0,59542.0,0.00025187]
[1723647242323,0.083948,59543.0,59542.0,0.00025187]
[1723647242517,0.444748,59543.0,59542.0,0.00025187]
[1723647242718,0.444748,59543.0,59532.0,0.2363]
[1723647242719,1.26464,59543.0,59532.0,0.2363]
[1723647242916,0.444758,59536.0,59527.0,0.04987801]
[1723647243426,0.3608,59536.0,59527.0,0.04987801]
[1723647243817,0.3608,59536.0,59523.0,0.30299761]
[1723647243818,0.444758,59536.0,59530.0,0.00025187]
[1723647245321,0.948678,59536.0,59530.0,0.00025187]
[1723647245517,0.083965,59531.0,59530.0,0.00025187]
[1723647245828,0.444765,59531.0,59530.0,0.00025187]
[1723647246016,1.348725,59531.0,59530.0,0.00025187]
[1723647246417,1.34887081,59531.0,59530.0,0.00025187]
[1723647246619,0.083975,59524.0,59516.0,0.04987801]
[1723647246922,0.3608,59521.0,59516.0,0.083986]
[1723647247519,0.00017879,59520.0,59513.0,0.2276]
[1723647247724,0.00017879,59520.0,59514.0,0.04987801]
[1723647247913,0.00017879,59520.0,59519.0,0.083982]
[1723647248619,0.00025187,59524.0,59523.0,0.083976]
[1723647249431,0.00025187,59524.0,59520.0,0.2239]
[1723647249829,0.3608,59521.0,59517.0,0.083984]
[1723647250421,0.3608,59521.0,59514.0,0.083988]
[1723647250926,0.36772413,59521.0,59512.0,0.3608]
[1723647251131,0.36772413,59521.0,59515.0,0.083987]
[1723647251526,0.36772413,59521.0,59512.0,0.3608]
[1723647251729,0.36772413,59521.0,59517.0,0.083984]
[1723647251925,0.45170413,59521.0,59512.0,0.44479]
[1723647252120,0.45170413,59521.0,59512.0,0.3608]
[1723647252325,0.36772413,59521.0,59512.0,0.3608]
[1723647252529,0.36772413,59521.0,59516.0,0.083985]
[1723647252731,0.36772413,59521.0,59517.0,0.001]
[1723647252732,0.37272413,59521.0,59517.0,0.001]
[1723647253318,0.083981,59520.0,59517.0,0.001]
[1723647254031,0.083981,59520.0,59514.0,0.083988]
[1723647254233,0.36772413,59521.0,59513.0,0.22885187]
[1723647254419,0.36772413,59521.0,59517.0,0.083984]
[1723647254631,0.38172413,59521.0,59517.0,0.083984]
[1723647254824,0.005,59520.0,59517.0,0.084984]
[1723647255121,0.08898,59520.0,59517.0,0.002]
[1723647256524,0.083982,59519.0,59517.0,0.002]
[1723647256922,0.083982,59519.0,59517.0,0.001]
[1723647257130,0.083982,59519.0,59514.0,0.084988]
[1723647257532,0.083982,59519.0,59517.0,0.001]
[1723647258129,0.36772413,59521.0,59513.0,0.22785187]
[1723647258331,0.36772413,59521.0,59517.0,0.001]
[1723647258535,0.36772413,59521.0,59518.0,0.083983]
[1723647259134,0.005,59519.0,59518.0,0.083983]
[1723647259334,0.019,59519.0,59518.0,0.083983]
[1723647260236,0.014,59519.0,59518.0,0.083983]
[1723647260627,0.014,59519.0,59518.0,0.588023]
[1723647260932,0.019,59519.0,59518.0,0.989023]
[1723647261240,0.019,59519.0,59518.0,1.349823]
[1723647261531,0.005,59519.0,59518.0,1.349823]
[1723647261725,0.005,59519.0,59518.0,1.350823]
[1723647262329,0.005,59519.0,59518.0,0.990023]
[1723647262635,0.00025187,59524.0,59518.0,0.990023]
[1723647262636,0.00025187,59524.0,59520.0,0.08398]
[1723647262936,0.00025187,59524.0,59523.0,0.083976]
[1723647264238,0.00025187,59524.0,59523.0,0.13385401]
[1723647264429,0.00025187,59524.0,59523.0,0.083976]
[1723647266235,0.01425187,59524.0,59523.0,0.084976]
[1723647266629,0.01425187,59524.0,59523.0,0.085976]
[1723647267933,0.3608,59536.0,59523.0,1.4004414]
[1723647267934,0.083958,59536.0,59523.0,1.4004414]
[1723647268233,0.083958,59536.0,59535.0,0.05000248]
[1723647268441,0.444758,59536.0,59535.0,0.05000248]
[1723647268627,0.444758,59536.0,59533.0,0.06661773]
[1723647268825,0.3608,59534.0,59533.0,0.083962]
[1723647269024,0.083955,59539.0,59536.0,0.083957]
[1723647269241,0.3608,59537.0,59536.0,0.15066141]
[1723647269644,0.00025187,59540.0,59539.0,0.083953]
[1723647270135,0.083955,59538.0,59537.0,0.08327216]
[1723647270336,0.00025187,59540.0,59533.0,0.08327216]
[1723647270337,0.083959,59535.0,59533.0,0.08327216]
[1723647270540,0.3608,59537.0,59536.0,0.001]
[1723647271336,0.00025187,59540.0,59539.0,0.083953]
[1723647271839,0.00025187,59540.0,59539.0,0.587833]
[1723647272038,0.00025187,59540.0,59539.0,0.671786]
[1723647272226,0.00025187,59540.0,59539.0,0.587833]
[1723647272634,0.00025187,59540.0,59539.0,0.16741229]
[1723647272837,0.00025187,59540.0,59539.0,0.083953]
[1723647273241,0.00025187,59540.0,59539.0,0.084953]
[1723647274037,0.00025187,59540.0,59539.0,0.67229229]
[1723647274338,0.00025187,59540.0,59539.0,0.672786]
[1723647274549,0.00025187,59540.0,59539.0,0.588833]
[1723647274929,0.00025187,59540.0,59539.0,0.084953]
[1723647275939,0.00025187,59540.0,59539.0,0.791533]
[1723647276337,0.00025187,59540.0,59539.0,0.875486]
[1723647276544,0.3608,59549.0,59548.0,0.083941]
[1723647276747,0.3608,59549.0,59548.0,0.15059517]
[1723647276935,0.3608,59549.0,59548.0,0.083941]
[1723647277330,0.00726334,59554.0,59553.0,0.083934]
[1723647277644,0.3608,59556.0,59553.0,0.083934]
[1723647277841,0.3608,59556.0,59553.0,0.06663473]
[1723647278144,0.083934,59553.0,59551.0,0.15057073]
[1723647278338,0.083934,59553.0,59552.0,0.083935]
[1723647279439,0.3678,59556.0,59553.0,0.001]
[1723647279645,0.3678,59556.0,59554.0,0.0498903]
[1723647279943,0.3678,59556.0,59554.0,0.1338223]
[1723647280152,0.45173,59556.0,59554.0,0.1338223]
[1723647280439,0.083932,59554.0,59553.0,0.0508903]
[1723647280645,0.083932,59554.0,59553.0,0.001]
[1723647281446,0.444732,59554.0,59553.0,0.001]
[1723647281746,0.083935,59552.0,59548.0,0.13407275]
[1723647281946,0.3608,59554.0,59551.0,0.083935]
[1723647282149,0.3608,59554.0,59551.0,0.13381688]
[1723647282453,0.3608,59554.0,59548.0,0.05013375]
[1723647282744,0.3608,59549.0,59548.0,0.00025187]
[1723647283440,0.444739,59549.0,59548.0,0.00025187]
[1723647284752,0.3608,59549.0,59548.0,0.00025187]
[1723647285139,0.289436,59552.0,59548.0,0.00025187]
[1723647285338,0.289436,59552.0,59548.0,0.08419187]
[1723647285339,0.3608,59549.0,59548.0,0.08419187]
[1723647285545,0.3608,59549.0,59548.0,0.00125187]
[1723647285948,0.3608,59549.0,59548.0,0.08519287]
[1723647286344,0.3608,59549.0,59548.0,0.00025187]
[1723647286544,0.3608,59549.0,59548.0,0.00125187]
[1723647286745,0.3678,59549.0,59548.0,0.00225187]
[1723647287653,0.451739,59549.0,59548.0,0.00225187]
[1723647288642,0.3678,59549.0,59548.0,0.00225187]
[1723647288951,0.3678,59549.0,59548.0,0.13607475]
[1723647289140,0.3678,59549.0,59548.0,0.00225187]
[1723647290241,0.007,59549.0,59548.0,0.1528276]
[1723647291047,0.007,59549.0,59548.0,0.08619287]
[1723647293545,0.007,59549.0,59548.0,0.22641041]
[1723647293753,0.007,59549.0,59548.0,0.08619287]
[1723647294353,0.007,59549.0,59548.0,0.16951058]
[1723647294536,0.007,59549.0,59548.0,0.08619287]
[1723647295450,0.007,59549.0,59548.0,0.22685826]
[1723647296453,0.007,59549.0,59548.0,0.14354055]
[1723647298152,0.090939,59549.0,59548.0,0.05913458]
[1723647298361,0.090939,59549.0,59548.0,0.00225187]
[1723647299550,0.174878,59549.0,59548.0,0.00225187]
[1723647299756,0.083946,59544.0,59543.0,1e-08]
[1723647300052,0.083949,59542.0,59537.0,0.18393726]
[1723647300357,0.3608,59539.0,59538.0,0.05642986]
[1723647301153,0.444753,59539.0,59533.0,0.18419413]
[1723647301357,0.444753,59539.0,59534.0,0.05705935]
[1723647301654,0.444753,59539.0,59535.0,0.05705935]
[1723647301953,0.3608,59539.0,59536.0,0.05725967]
[1723647302149,0.083956,59538.0,59533.0,0.00025187]
[1723647302349,0.083956,59538.0,59534.0,0.05722908]
[1723647302556,0.083956,59538.0,59533.0,0.00025187]
[1723647302557,0.37506135,59539.0,59533.0,0.00025187]
[1723647302748,0.37506135,59539.0,59533.0,0.06656628]
[1723647302749,0.44476,59534.0,59533.0,0.06656628]
[1723647302950,0.86472,59534.0,59521.0,0.09998126]
[1723647303158,0.3608,59525.0,59517.0,0.2048]
[1723647303459,0.3608,59519.0,59518.0,0.05923269]
[1723647303659,0.3608,59519.0,59517.0,0.2048]
[1723647305355,0.3608,59519.0,59517.0,0.2058]
[1723647306766,0.3608,59519.0,59518.0,0.083983]
[1723647307762,0.00704847,59521.0,59518.0,0.083983]
[1723647307960,0.3608,59519.0,59517.0,0.2058]
[1723647308349,0.00025187,59524.0,59517.0,0.2058]
[1723647308350,0.00025187,59524.0,59518.0,0.083983]
[1723647308580,0.00721384,59524.0,59520.0,0.04988175]
[1723647308755,0.08422687,59524.0,59519.0,0.04988175]
[1723647309063,0.3608,59520.0,59519.0,0.04988175]
[1723647309365,0.00025187,59524.0,59519.0,0.04988175]
[1723647309557,0.3608,59542.0,59523.0,0.622]
[1723647309855,0.3608,59542.0,59541.0,0.083951]